[Event "Tournoi de MI de l'Echiquier du Pays de Bray"]
[Site "Gournay-en-Bray, France"]
[Date "2023.05.18"]
[Round "6.2"]
[White "HÖGLAUER, Patrick"]
[Black "DUBESSAY, Bastien"]
[Result "1-0"]
[TimeControl "1h30/40 + 30 (30s/c)"]
[WhiteTitle "FM"]
[BlackTitle "FM"]
[WhiteFideId "1270548"]
[BlackFideId "650048"]
[WhiteElo "2280"]
[BlackElo "2283"]

1. d4 {[%clk 01:30:56]} {[%emt 00:00:03]} Nf6 {[%clk 01:30:51]} {[%emt
00:00:09]} 2. c4 {[%clk 01:31:22]} {[%emt 00:00:04]} e6 {[%clk 01:31:10]}
{[%emt 00:00:11]} 3. Nf3 {[%clk 01:31:01]} {[%emt 00:00:52]} c5 {[%clk
01:31:21]} {[%emt 00:00:18]} 4. Nc3 {[%clk 01:26:16]} {[%emt 00:05:15]} cxd4
{[%clk 01:27:42]} {[%emt 00:04:09]} 5. Nxd4 {[%clk 01:26:26]} {[%emt 00:00:21]}
d5 {[%clk 01:20:09]} {[%emt 00:08:02]} 6. cxd5 {[%clk 01:26:27]} {[%emt
00:00:29]} Nxd5 {[%clk 01:19:50]} {[%emt 00:00:49]} 7. Bd2 {[%clk 01:21:10]}
{[%emt 00:05:47]} Nc7 {[%clk 01:08:08]} {[%emt 00:12:12]} 8. e3 {[%clk
01:13:48]} {[%emt 00:07:52]} Be7 {[%clk 01:05:26]} {[%emt 00:03:12]} 9. Qc2
{[%clk 01:04:11]} {[%emt 00:10:07]} O-O {[%clk 01:03:31]} {[%emt 00:02:25]} 10.
Bd3 {[%clk 00:59:49]} {[%emt 00:04:53]} g6 {[%clk 00:59:55]} {[%emt 00:04:06]}
11. Rd1 {[%clk 00:52:40]} {[%emt 00:07:39]} e5 {[%clk 00:57:28]} {[%emt
00:02:57]} 12. Nf3 {[%clk 00:48:39]} {[%emt 00:04:32]} Nc6 {[%clk 00:57:48]}
{[%emt 00:00:10]} 13. Be4 {[%clk 00:32:23]} {[%emt 00:16:45]} Nb4 {[%clk
00:43:45]} {[%emt 00:14:33]} 14. Qb1 {[%clk 00:32:52]} {[%emt 00:00:01]} f5
{[%clk 00:42:29]} {[%emt 00:01:45]} 15. Bc2 {[%clk 00:32:28]} {[%emt 00:00:55]}
Nxc2+ {[%clk 00:41:59]} {[%emt 00:01:00]} 16. Qxc2 {[%clk 00:32:57]} {[%emt
00:00:02]} Bf6 {[%clk 00:39:07]} {[%emt 00:03:22]} 17. e4 {[%clk 00:32:52]}
{[%emt 00:00:35]} Qe7 {[%clk 00:34:59]} {[%emt 00:04:38]} 18. O-O {[%clk
00:28:12]} {[%emt 00:05:11]} Re8 {[%clk 00:29:19]} {[%emt 00:06:10]} 19. Rfe1
{[%clk 00:28:00]} {[%emt 00:00:42]} Qg7 {[%clk 00:27:44]} {[%emt 00:02:04]} 20.
Bg5 {[%clk 00:26:44]} {[%emt 00:01:46]} f4 {[%clk 00:20:32]} {[%emt 00:07:42]}
21. Bxf6 {[%clk 00:22:59]} {[%emt 00:04:15]} Qxf6 {[%clk 00:20:24]} {[%emt
00:00:38]} 22. Nd5 {[%clk 00:18:49]} {[%emt 00:04:41]} Nxd5 {[%clk 00:20:49]}
{[%emt 00:00:05]} 23. Rxd5 {[%clk 00:18:48]} {[%emt 00:00:31]} Bg4 {[%clk
00:20:37]} {[%emt 00:00:41]} 24. Qd3 {[%clk 00:14:30]} {[%emt 00:04:48]} Rac8
{[%clk 00:20:07]} {[%emt 00:01:00]} 25. h3 {[%clk 00:10:50]} {[%emt 00:04:11]}
Bxf3 {[%clk 00:19:41]} {[%emt 00:00:56]} 26. Qxf3 {[%clk 00:11:18]} {[%emt
00:00:01]} Rc7 {[%clk 00:19:21]} {[%emt 00:00:50]} 27. Qb3 {[%clk 00:11:11]}
{[%emt 00:00:38]} Kg7 {[%clk 00:18:57]} {[%emt 00:00:54]} 28. Red1 {[%clk
00:10:58]} {[%emt 00:00:43]} Ree7 {[%clk 00:16:52]} {[%emt 00:02:35]} 29. a3
{[%clk 00:06:17]} {[%emt 00:05:12]} a6 {[%clk 00:17:07]} {[%emt 00:00:15]} 30.
a4 {[%clk 00:04:53]} {[%emt 00:01:54]} Qc6 {[%clk 00:15:59]} {[%emt 00:01:37]}
31. a5 {[%clk 00:04:49]} {[%emt 00:00:34]} Qc4 {[%clk 00:15:26]} {[%emt
00:01:03]} 32. Qf3 {[%clk 00:05:02]} {[%emt 00:00:18]} Qc2 {[%clk 00:14:53]}
{[%emt 00:01:02]} 33. R5d2 {[%clk 00:03:08]} {[%emt 00:02:24]} Qa4 {[%clk
00:15:13]} {[%emt 00:00:10]} 34. Rd5 {[%clk 00:03:29]} {[%emt 00:00:09]} Qb4
{[%clk 00:14:53]} {[%emt 00:00:51]} 35. Qe2 {[%clk 00:03:29]} {[%emt 00:00:30]}
Kh6 {[%clk 00:10:49]} {[%emt 00:04:33]} 36. Kh2 {[%clk 00:02:54]} {[%emt
00:01:06]} Qa4 {[%clk 00:07:50]} {[%emt 00:03:29]} 37. Qf3 {[%clk 00:02:19]}
{[%emt 00:01:05]} Kg7 {[%clk 00:07:24]} {[%emt 00:00:56]} 38. Qd3 {[%clk
00:01:22]} {[%emt 00:01:28]} Qc2 {[%clk 00:07:06]} {[%emt 00:00:48]} 39. Qxc2
{[%clk 00:00:36]} {[%emt 00:01:16]} Rxc2 {[%clk 00:07:31]} {[%emt 00:00:04]} 40.
R1d2 {[%clk 00:00:55]} {[%emt 00:00:11]} Rc4 {[%clk 00:07:00]} {[%emt
00:01:01]} 41. f3 {[%clk 00:27:28]} {[%emt 00:04:27]} Rb4 {[%clk 00:28:16]}
{[%emt 00:09:44]} 42. h4 {[%clk 00:22:34]} {[%emt 00:05:23]} Rb3 {[%clk
00:26:36]} {[%emt 00:02:09]} 43. Kh3 {[%clk 00:22:00]} {[%emt 00:01:04]} h5
{[%clk 00:25:12]} {[%emt 00:01:54]} 44. Kh2 {[%clk 00:21:05]} {[%emt 00:01:25]}
Kf7 {[%clk 00:22:49]} {[%emt 00:02:53]} 45. Kg1 {[%clk 00:19:16]} {[%emt
00:02:20]} g5 {[%clk 00:21:15]} {[%emt 00:02:04]} 46. hxg5 {[%clk 00:17:44]}
{[%emt 00:02:03]} Kg6 {[%clk 00:21:39]} {[%emt 00:00:06]} 47. Kh2 {[%clk
00:17:05]} {[%emt 00:01:09]} Kxg5 {[%clk 00:21:56]} {[%emt 00:00:13]} 48. Kh3
{[%clk 00:17:30]} {[%emt 00:00:04]} Re3 {[%clk 00:20:06]} {[%emt 00:02:20]} 49.
Rd1 {[%clk 00:15:37]} {[%emt 00:02:24]} Re2 {[%clk 00:19:10]} {[%emt 00:01:25]}
50. R5d2 {[%clk 00:11:46]} {[%emt 00:04:22]} Re3 {[%clk 00:17:51]} {[%emt
00:01:49]} 51. Rd8 {[%clk 00:12:15]} {[%emt 00:00:02]} Re2 {[%clk 00:15:46]}
{[%emt 00:02:34]} 52. R1d6 {[%clk 00:12:37]} {[%emt 00:00:08]} Rg7 {[%clk
00:14:40]} {[%emt 00:01:36]} 53. Re8 {[%clk 00:12:31]} {[%emt 00:00:36]} Rg6
{[%clk 00:15:04]} {[%emt 00:00:05]} 54. Rxe5+ {[%clk 00:12:57]} {[%emt
00:00:04]} Kh6 {[%clk 00:15:30]} {[%emt 00:00:03]} 55. Rxg6+ {[%clk 00:12:37]}
{[%emt 00:00:51]} Kxg6 {[%clk 00:15:58]} {[%emt 00:00:01]} 56. Re6+ {[%clk
00:12:42]} {[%emt 00:00:26]} Kg5 {[%clk 00:16:19]} {[%emt 00:00:10]} 57. Rb6
{[%clk 00:12:49]} {[%emt 00:00:22]} Re1 {[%clk 00:16:26]} {[%emt 00:00:23]} 58.
Kh2 {[%clk 00:13:17]} {[%emt 00:00:02]} h4 {[%clk 00:09:53]} {[%emt 00:07:03]}
59. Rxb7 {[%clk 00:12:38]} {[%emt 00:01:09]} h3 {[%clk 00:10:22]} {[%emt
00:00:01]} 60. Rg7+ {[%clk 00:12:11]} {[%emt 00:00:57]} Kf6 {[%clk 00:10:29]}
{[%emt 00:00:23]} 61. Rg4 {[%clk 00:12:16]} {[%emt 00:00:25]} Ke5 {[%clk
00:10:44]} {[%emt 00:00:15]} 62. Rg5+ {[%clk 00:12:15]} {[%emt 00:00:31]} Kd4
{[%clk 00:10:50]} {[%emt 00:00:23]} 63. Kxh3 {[%clk 00:12:33]} {[%emt
00:00:11]} Re2 {[%clk 00:10:56]} {[%emt 00:00:25]} 64. b4 {[%clk 00:10:21]}
{[%emt 00:02:42]} Rb2 {[%clk 00:10:56]} {[%emt 00:00:30]} 65. Rg6 {[%clk
00:10:21]} {[%emt 00:00:30]} Rxb4 {[%clk 00:11:13]} {[%emt 00:00:13]} 66. Rxa6
{[%clk 00:10:47]} {[%emt 00:00:04]} Rb1 {[%clk 00:10:42]} {[%emt 00:01:01]} 67.
Rb6 {[%clk 00:11:03]} {[%emt 00:00:14]} Ra1 {[%clk 00:10:52]} {[%emt 00:00:20]}
68. Kg4 {[%clk 00:11:14]} {[%emt 00:00:19]} 1-0

[Event "Tournoi de MI de l'Echiquier du Pays de Bray"]
[Site "Gournay-en-Bray, France"]
[Date "2023.05.18"]
[Round "6.3"]
[White "TEREKHOV, Andrey"]
[Black "DGEBUADZE, Alexander"]
[Result "0-1"]
[TimeControl "1h30/40 + 30 (30s/c)"]
[WhiteTitle "FM"]
[BlackTitle "GM"]
[WhiteFideId "4121481"]
[BlackFideId "203882"]
[WhiteElo "2314"]
[BlackElo "2435"]

1. d4 {[%clk 01:30:57]} {[%emt 00:00:01]} Nf6 {[%clk 01:30:22]} {[%emt
00:00:37]} 2. Nf3 {[%clk 01:30:46]} {[%emt 00:00:42]} e6 {[%clk 01:30:40]}
{[%emt 00:00:12]} 3. c4 {[%clk 01:31:04]} {[%emt 00:00:13]} Bb4+ {[%clk
01:30:55]} {[%emt 00:00:15]} 4. Nbd2 {[%clk 01:31:17]} {[%emt 00:00:17]} b6
{[%clk 01:31:07]} {[%emt 00:00:18]} 5. a3 {[%clk 01:31:30]} {[%emt 00:00:17]}
Bxd2+ {[%clk 01:31:29]} {[%emt 00:00:07]} 6. Qxd2 {[%clk 01:31:42]} {[%emt
00:00:18]} Bb7 {[%clk 01:31:39]} {[%emt 00:00:19]} 7. e3 {[%clk 01:31:29]}
{[%emt 00:00:43]} Nc6 {[%clk 01:31:22]} {[%emt 00:00:47]} 8. b4 {[%clk
01:28:58]} {[%emt 00:03:01]} Ne7 {[%clk 01:31:27]} {[%emt 00:00:25]} 9. Be2
{[%clk 01:27:53]} {[%emt 00:01:36]} O-O {[%clk 01:31:00]} {[%emt 00:00:55]} 10.
O-O {[%clk 01:27:26]} {[%emt 00:00:58]} d6 {[%clk 01:28:51]} {[%emt 00:02:39]}
11. Qc2 {[%clk 01:16:39]} {[%emt 00:11:17]} h6 {[%clk 01:20:16]} {[%emt
00:09:05]} 12. Bb2 {[%clk 00:55:36]} {[%emt 00:21:34]} Be4 {[%clk 01:19:48]}
{[%emt 00:00:58]} 13. Qc3 {[%clk 00:52:39]} {[%emt 00:03:27]} c6 {[%clk
01:16:25]} {[%emt 00:03:53]} 14. a4 {[%clk 00:46:37]} {[%emt 00:06:33]} a6
{[%clk 01:16:02]} {[%emt 00:00:53]} 15. Nd2 {[%clk 00:36:20]} {[%emt 00:10:46]}
Bg6 {[%clk 01:15:39]} {[%emt 00:00:52]} 16. f3 {[%clk 00:28:18]} {[%emt
00:08:32]} Qd7 {[%clk 01:11:35]} {[%emt 00:04:34]} 17. e4 {[%clk 00:23:32]}
{[%emt 00:05:17]} Rfd8 {[%clk 01:08:01]} {[%emt 00:04:03]} 18. Rfd1 {[%clk
00:20:34]} {[%emt 00:03:28]} d5 {[%clk 01:05:09]} {[%emt 00:03:21]} 19. Qe3
{[%clk 00:19:37]} {[%emt 00:01:28]} Qb7 {[%clk 01:00:25]} {[%emt 00:05:14]} 20.
Bc3 {[%clk 00:15:22]} {[%emt 00:04:46]} b5 {[%clk 00:55:24]} {[%emt 00:05:30]}
21. c5 {[%clk 00:07:12]} {[%emt 00:08:40]} dxe4 {[%clk 00:52:48]} {[%emt
00:03:05]} 22. Nxe4 {[%clk 00:06:26]} {[%emt 00:01:17]} Ned5 {[%clk 00:46:34]}
{[%emt 00:06:44]} 23. Nxf6+ {[%clk 00:06:30]} {[%emt 00:00:26]} Nxf6 {[%clk
00:46:40]} {[%emt 00:00:24]} 24. Be1 {[%clk 00:04:21]} {[%emt 00:02:39]} Bc2
{[%clk 00:37:15]} {[%emt 00:09:54]} 25. axb5 {[%clk 00:04:22]} {[%emt
00:00:29]} axb5 {[%clk 00:35:49]} {[%emt 00:01:56]} 26. Rdc1 {[%clk 00:04:28]}
{[%emt 00:00:24]} Nd5 {[%clk 00:33:39]} {[%emt 00:02:40]} 27. Qd2 {[%clk
00:04:33]} {[%emt 00:00:25]} Bg6 {[%clk 00:33:42]} {[%emt 00:00:26]} 28. Qb2
{[%clk 00:03:46]} {[%emt 00:01:18]} Qe7 {[%clk 00:31:47]} {[%emt 00:02:24]} 29.
Rxa8 {[%clk 00:03:13]} {[%emt 00:01:03]} Rxa8 {[%clk 00:32:05]} {[%emt
00:00:11]} 30. Ra1 {[%clk 00:03:37]} {[%emt 00:00:06]} Rxa1 {[%clk 00:28:34]}
{[%emt 00:04:01]} 31. Qxa1 {[%clk 00:04:03]} {[%emt 00:00:03]} Qg5 {[%clk
00:28:57]} {[%emt 00:00:07]} 32. Qb2 {[%clk 00:03:03]} {[%emt 00:01:31]} Ne3
{[%clk 00:25:38]} {[%emt 00:03:47]} 33. g3 {[%clk 00:02:34]} {[%emt 00:01:00]}
Nc2 {[%clk 00:24:41]} {[%emt 00:01:25]} 34. f4 {[%clk 00:00:56]} {[%emt
00:02:10]} Qd5 {[%clk 00:22:12]} {[%emt 00:02:58]} 35. Bf2 {[%clk 00:01:10]}
{[%emt 00:00:17]} Be4 {[%clk 00:21:51]} {[%emt 00:00:51]} 36. h3 {[%clk
00:00:35]} {[%emt 00:01:06]} h5 {[%clk 00:17:56]} {[%emt 00:04:24]} 37. Bf1
{[%clk 00:00:36]} {[%emt 00:00:30]} Qf5 {[%clk 00:17:22]} {[%emt 00:01:04]} 38.
Qc3 {[%clk 00:00:39]} {[%emt 00:00:28]} h4 {[%clk 00:14:09]} {[%emt 00:03:42]}
39. Kh2 {[%clk 00:00:40]} {[%emt 00:00:29]} hxg3+ {[%clk 00:14:12]} {[%emt
00:00:26]} 40. Bxg3 {[%clk 00:00:40]} {[%emt 00:00:30]} Qh5 {[%clk 00:12:59]}
{[%emt 00:01:42]} 41. Bf2 {[%clk 00:20:47]} {[%emt 00:10:54]} Nxb4 {[%clk
00:39:52]} {[%emt 00:04:07]} 42. Qxb4 {[%clk 00:20:21]} {[%emt 00:00:55]} Qf3
{[%clk 00:40:15]} {[%emt 00:00:06]} 43. Qe1 {[%clk 00:19:22]} {[%emt 00:01:30]}
b4 {[%clk 00:37:19]} {[%emt 00:03:26]} 44. Qe2 {[%clk 00:18:10]} {[%emt
00:01:42]} Qh1+ {[%clk 00:32:38]} {[%emt 00:05:10]} 45. Kg3 {[%clk 00:18:36]}
{[%emt 00:00:04]} b3 {[%clk 00:33:07]} {[%emt 00:00:02]} 46. d5 {[%clk
00:11:38]} {[%emt 00:07:28]} b2 {[%clk 00:33:10]} {[%emt 00:00:27]} 47. Qxb2
{[%clk 00:11:28]} {[%emt 00:00:40]} Qxf1 {[%clk 00:33:16]} {[%emt 00:00:23]} 48.
dxe6 {[%clk 00:11:03]} {[%emt 00:00:56]} Qg2+ {[%clk 00:32:21]} {[%emt
00:01:23]} 49. Kh4 {[%clk 00:11:30]} {[%emt 00:00:05]} f6 {[%clk 00:30:30]}
{[%emt 00:02:21]} 50. Qd2 {[%clk 00:10:04]} {[%emt 00:01:56]} Bf5 {[%clk
00:23:56]} {[%emt 00:07:03]} 51. Qe3 {[%clk 00:09:55]} {[%emt 00:00:40]} Kh7
{[%clk 00:23:05]} {[%emt 00:01:21]} 52. Qg3 {[%clk 00:09:38]} {[%emt 00:00:47]}
g5+ {[%clk 00:17:56]} {[%emt 00:05:38]} 53. Kh5 {[%clk 00:08:43]} {[%emt
00:01:26]} Qd5 {[%clk 00:15:06]} {[%emt 00:03:20]} 54. fxg5 {[%clk 00:04:13]}
{[%emt 00:05:00]} Qd1+ {[%clk 00:15:02]} {[%emt 00:00:33]} 55. Kh4 {[%clk
00:04:38]} {[%emt 00:00:06]} Qa4+ {[%clk 00:15:25]} {[%emt 00:00:07]} 56. Kh5
{[%clk 00:05:00]} {[%emt 00:00:07]} Bg6# {[%clk 00:15:16]} {[%emt 00:00:05]}
0-1

[Event "Tournoi de MI de l'Echiquier du Pays de Bray"]
[Site "Gournay-en-Bray, France"]
[Date "2023.05.18"]
[Round "6.4"]
[White "DECUIGNIERE, Tom"]
[Black "LEFEBVRE, Hervé"]
[Result "1-0"]
[TimeControl "1h30/40 + 30 (30s/c)"]
[WhiteTitle "FM"]
[BlackTitle "FM"]
[WhiteFideId "26093820"]
[BlackFideId "607363"]
[WhiteElo "2396"]
[BlackElo "2161"]

1. d4 {[%clk 01:30:58]} {[%emt 00:00:02]} d5 {[%clk 01:30:46]} {[%emt
00:00:14]} 2. c4 {[%clk 01:31:16]} {[%emt 00:00:11]} e6 {[%clk 01:31:10]}
{[%emt 00:00:06]} 3. Nf3 {[%clk 01:29:30]} {[%emt 00:02:16]} Nf6 {[%clk
01:30:20]} {[%emt 00:01:19]} 4. Nc3 {[%clk 01:28:23]} {[%emt 00:01:38]} h6
{[%clk 01:28:54]} {[%emt 00:01:56]} 5. g3 {[%clk 01:25:09]} {[%emt 00:03:43]}
Bd6 {[%clk 01:28:32]} {[%emt 00:00:52]} 6. Bg2 {[%clk 01:23:30]} {[%emt
00:02:09]} Nc6 {[%clk 01:28:55]} {[%emt 00:00:08]} 7. O-O {[%clk 01:22:39]}
{[%emt 00:01:20]} O-O {[%clk 01:29:20]} {[%emt 00:00:06]} 8. c5 {[%clk
01:10:12]} {[%emt 00:12:57]} Be7 {[%clk 01:27:42]} {[%emt 00:02:07]} 9. Bf4
{[%clk 01:10:32]} {[%emt 00:00:10]} g5 {[%clk 01:17:06]} {[%emt 00:11:06]} 10.
Bc1 {[%emt 00:12:17]} Ne4 {[%clk 01:11:47]} 11. e3 {[%clk 01:00:07]} {[%emt
00:04:58]} f5 {[%clk 01:04:41]} {[%emt 00:07:36]} 12. Nd2 {[%clk 00:50:47]}
{[%emt 00:09:50]} Kg7 {[%clk 01:00:16]} {[%emt 00:04:55]} 13. Ndxe4 {[%clk
00:48:32]} {[%emt 00:02:45]} dxe4 {[%clk 00:58:44]} {[%emt 00:02:02]} 14. a3
{[%clk 00:42:25]} {[%emt 00:06:37]} a5 {[%clk 00:51:32]} {[%emt 00:07:42]} 15.
Bd2 {[%clk 00:39:44]} {[%emt 00:03:11]} b6 {[%clk 00:49:38]} {[%emt 00:02:24]}
16. b4 {[%clk 00:36:13]} {[%emt 00:04:00]} bxc5 {[%clk 00:48:09]} {[%emt
00:01:59]} 17. b5 {[%clk 00:30:43]} {[%emt 00:06:01]} Na7 {[%clk 00:12:17]}
{[%emt 00:36:21]} 18. dxc5 {[%clk 00:27:31]} {[%emt 00:03:42]} Bxc5 {[%clk
00:11:48]} {[%emt 00:00:58]} 19. Nxe4 {[%clk 00:26:45]} {[%emt 00:01:16]} fxe4
{[%clk 00:09:52]} {[%emt 00:02:27]} 20. Bc3+ {[%clk 00:25:11]} {[%emt
00:02:04]} e5 {[%clk 00:10:14]} {[%emt 00:00:08]} 21. Bxe5+ {[%clk 00:25:20]}
{[%emt 00:00:20]} Kg6 {[%clk 00:10:36]} {[%emt 00:00:08]} 22. Qxd8 {[%clk
00:24:13]} Rxd8 {[%clk 00:11:02]} {[%emt 00:01:41]} 23. Bxe4+ {[%clk 00:24:40]}
{[%emt 00:00:04]} Bf5 {[%clk 00:11:28]} {[%emt 00:00:04]} 24. Bxa8 {[%clk
00:25:04]} {[%emt 00:00:06]} Rxa8 {[%clk 00:11:54]} {[%emt 00:00:04]} 25. Rfc1
{[%clk 00:25:27]} {[%emt 00:00:07]} Bb6 {[%clk 00:07:17]} {[%emt 00:05:07]} 26.
Bxc7 {[%clk 00:23:37]} {[%emt 00:02:20]} Bxc7 {[%clk 00:06:37]} {[%emt
00:01:09]} 27. Rxc7 {[%clk 00:24:03]} {[%emt 00:00:04]} Nxb5 {[%clk 00:04:10]}
{[%emt 00:02:57]} 28. Rc6+ {[%clk 00:24:30]} {[%emt 00:00:03]} Kg7 {[%clk
00:03:04]} {[%emt 00:01:36]} 29. Rc5 {[%clk 00:24:38]} {[%emt 00:00:22]} Bd7
{[%clk 00:02:44]} {[%emt 00:00:50]} 30. a4 {[%clk 00:25:03]} {[%emt 00:00:05]}
1-0